Workbook

Sheet 12개월 현금 흐름
A2: 12개월 현금 흐름 | O2: 회계 연도 시작: | P2: 2013-07-01
A3: 회사 이름
A4: 시/도, 구/군/시, 주소, 우편 번호
A5: 전화, 전자 메일, 웹
B7: 초기 | C7: =회계_연도 -> 2013-07-01 | D7: =DATE(YEAR(C7),MONTH(C7)+1,1) -> 2013-08-01 | E7: =DATE(YEAR(D7),MONTH(D7)+1,1) -> 2013-09-01 | F7: 2013-10-01 | G7: 2013-11-01 | H7: 2013-12-01 | I7: 2014-01-01 | J7: 2014-02-01 | K7: 2014-03-01 | L7: 2014-04-01 | M7: 2014-05-01 | N7: 2014-06-01 | O7: 월 평균 | P7: 개요
A8: 현금 요약
A9: 보유 현금 (월초) | B9: 55,000,000 | C9: =IF(영수증[[#Totals],[Column3]]+지출[[#Totals],[Column3]]=0,"",B11) -> 67,593,000 | D9: =IF(영수증[[#Totals],[Column4]]+지출[[#Totals],[Column4]]=0,"",C11) -> 54,265,000 | E9: =IF(영수증[[#Totals],[Column5]]+지출[[#Totals],[Column5]]=0,"",D11) -> 55,739,000 | F9: =IF(영수증[[#Totals],[Column6]]+지출[[#Totals],[Column6]]=0,"",E11) -> 69,290,000 | G9: =IF(영수증[[#Totals],[Column7]]+지출[[#Totals],[Column7]]=0,"",F11) -> 65,618,000 | H9: =IF(영수증[[#Totals],[Column8]]+지출[[#Totals],[Column8]]=0,"",G11) ->  | I9: =IF(영수증[[#Totals],[Column9]]+지출[[#Totals],[Column9]]=0,"",H11) ->  | J9: =IF(영수증[[#Totals],[Column10]]+지출[[#Totals],[Column10]]=0,"",I11) ->  | K9: =IF(영수증[[#Totals],[Column11]]+지출[[#Totals],[Column11]]=0,"",J11) ->  | L9: =IF(영수증[[#Totals],[Column12]]+지출[[#Totals],[Column12]]=0,"",K11) ->  | M9: =IF(영수증[[#Totals],[Column13]]+지출[[#Totals],[Column13]]=0,"",L11) ->  | N9: =IF(영수증[[#Totals],[Column14]]+지출[[#Totals],[Column14]]=0,"",M11) ->  | O9: =IFERROR(AVERAGE(요약[[#This Row],[Column3]:[Column14]]),"") -> 62,501,000
A10: 사용 가능 현금 (보유 + 수입, 지출) | B10: =SUM(B9,영수증[[#Totals],[Column2]]) -> 67,593,000 | C10: =IF(C9="","",SUM(C9,영수증[[#Totals],[Column3]])) -> 76,065,000 | D10: =IF(D9="","",SUM(D9,영수증[[#Totals],[Column4]])) -> 83,301,000 | E10: =IF(E9="","",SUM(E9,영수증[[#Totals],[Column5]])) -> 91,032,000 | F10: =IF(F9="","",SUM(F9,영수증[[#Totals],[Column6]])) -> 89,662,000 | G10: =IF(G9="","",SUM(G9,영수증[[#Totals],[Column7]])) -> 76,200,000 | H10: =IF(H9="","",SUM(H9,영수증[[#Totals],[Column8]])) ->  | I10: =IF(I9="","",SUM(I9,영수증[[#Totals],[Column9]])) ->  | J10: =IF(J9="","",SUM(J9,영수증[[#Totals],[Column10]])) ->  | K10: =IF(K9="","",SUM(K9,영수증[[#Totals],[Column11]])) ->  | L10: =IF(L9="","",SUM(L9,영수증[[#Totals],[Column12]])) ->  | M10: =IF(M9="","",SUM(M9,영수증[[#Totals],[Column13]])) ->  | N10: =IF(N9="","",SUM(N9,영수증[[#Totals],[Column14]])) ->  | O10: =IFERROR(AVERAGE(요약[[#This Row],[Column3]:[Column14]]),"") -> 83,252,000
A11: 현금 유동성 (월말) | B11: =(B10-지출[[#Totals],[Column2]]) -> 67,593,000 | C11: =IFERROR(C10-지출[[#Totals],[Column3]],"") -> 54,265,000 | D11: =IFERROR(D10-지출[[#Totals],[Column4]],"") -> 55,739,000 | E11: =IFERROR(E10-지출[[#Totals],[Column5]],"") -> 69,290,000 | F11: =IFERROR(F10-지출[[#Totals],[Column6]],"") -> 65,618,000 | G11: =IFERROR(G10-지출[[#Totals],[Column7]],"") -> 51,413,000 | H11: =IFERROR(H10-지출[[#Totals],[Column8]],"") ->  | I11: =IFERROR(I10-지출[[#Totals],[Column9]],"") ->  | J11: =IFERROR(J10-지출[[#Totals],[Column10]],"") ->  | K11: =IFERROR(K10-지출[[#Totals],[Column11]],"") ->  | L11: =IFERROR(L10-지출[[#Totals],[Column12]],"") ->  | M11: =IFERROR(M10-지출[[#Totals],[Column13]],"") ->  | N11: =IFERROR(N10-지출[[#Totals],[Column14]],"") ->  | O11: =IFERROR(AVERAGE(요약[[#This Row],[Column3]:[Column14]]),"") -> 59,265,000
A13: 현금 수입
A14: 현금 판매 | B14: 5,616,000 | C14: 3,889,000 | D14: 24,411,000 | E14: 31,642,000 | F14: 14,647,000 | G14: 3,034,000 | O14: =IFERROR(AVERAGE(영수증[[#This Row],[Column3]:[Column14]]),"") -> 15,524,600
A15: CR 계정에서 모은 금액 | B15: 4,498,000 | C15: 3,493,000 | D15: 1,987,000 | E15: 1,029,000 | F15: 2,911,000 | G15: 4,234,000 | O15: =IFERROR(AVERAGE(영수증[[#This Row],[Column3]:[Column14]]),"") -> 2,730,800
A16: 대출/기타 현금 | B16: 2,479,000 | C16: 1,090,000 | D16: 2,638,000 | E16: 2,622,000 | F16: 2,814,000 | G16: 3,314,000 | O16: =IFERROR(AVERAGE(영수증[[#This Row],[Column3]:[Column14]]),"") -> 2,495,600
A17: 총 현금 수입 | B17: =SUBTOTAL(109,영수증[Column2]) -> 12,593,000 | C17: =SUBTOTAL(109,영수증[Column3]) -> 8,472,000 | D17: =SUBTOTAL(109,영수증[Column4]) -> 29,036,000 | E17: =SUBTOTAL(109,영수증[Column5]) -> 35,293,000 | F17: =SUBTOTAL(109,영수증[Column6]) -> 20,372,000 | G17: =SUBTOTAL(109,영수증[Column7]) -> 10,582,000 | H17: =SUBTOTAL(109,영수증[Column8]) -> 0 | I17: =SUBTOTAL(109,영수증[Column9]) -> 0 | J17: =SUBTOTAL(109,영수증[Column10]) -> 0 | K17: =SUBTOTAL(109,영수증[Column11]) -> 0 | L17: =SUBTOTAL(109,영수증[Column12]) -> 0 | M17: =SUBTOTAL(109,영수증[Column13]) -> 0 | N17: =SUBTOTAL(109,영수증[Column14]) -> 0 | O17: =IFERROR(AVERAGE(영수증[[#Totals],[Column3]:[Column14]]),"") -> 8,646,250
A19: 현금 지출
A20: 구매(지정) | C20: 521,000 | D20: 323,000 | E20: 274,000 | F20: 451,000 | G20: 104,000 | O20: =IFERROR(AVERAGE(지출[[#This Row],[Column3]:[Column14]]),"") -> 334,600
A21: 총 급여(정확한 인출액) | C21: 10,572,000 | D21: 14,514,000 | E21: 10,561,000 | F21: 13,170,000 | G21: 12,478,000 | O21: =IFERROR(AVERAGE(지출[[#This Row],[Column3]:[Column14]]),"") -> 12,259,000
A22: 소모품(사무실 및 운영) | C22: 250,000 | D22: 428,000 | E22: 165,000 | F22: 1,168,000 | G22: 345,000 | O22: =IFERROR(AVERAGE(지출[[#This Row],[Column3]:[Column14]]),"") -> 471,200
A23: 수리 및 유지 관리 | C23: 0 | D23: 2,200,000 | E23: 163,000 | F23: 67,000 | G23: 0 | O23: =IFERROR(AVERAGE(지출[[#This Row],[Column3]:[Column14]]),"") -> 486,000
A24: 광고 | C24: 1,100,000 | D24: 625,000 | E24: 1,356,000 | F24: 0 | G24: 2,560,000 | O24: =IFERROR(AVERAGE(지출[[#This Row],[Column3]:[Column14]]),"") -> 1,128,200
A25: 임대 | C25: 3,500,000 | D25: 3,500,000 | E25: 3,500,000 | F25: 3,500,000 | G25: 3,500,000 | O25: =IFERROR(AVERAGE(지출[[#This Row],[Column3]:[Column14]]),"") -> 3,500,000
A26: 전기, 가스, 수도 | C26: 285,000 | D26: 318,000 | E26: 151,000 | F26: 134,000 | G26: 228,000 | O26: =IFERROR(AVERAGE(지출[[#This Row],[Column3]:[Column14]]),"") -> 223,200
A27: 기타(지정) | C27: 123,000 | D27: 234,000 | E27: 123,000 | F27: 234,000 | G27: 123,000 | O27: =IFERROR(AVERAGE(지출[[#This Row],[Column3]:[Column14]]),"") -> 167,400
A28: 주요 융자 상환금 | C28: 4,000,000 | D28: 4,000,000 | E28: 4,000,000 | F28: 4,000,000 | G28: 4,000,000 | O28: =IFERROR(AVERAGE(지출[[#This Row],[Column3]:[Column14]]),"") -> 4,000,000
A29: 자본 구매(지정) | C29: 679,000 | D29: 700,000 | E29: 679,000 | F29: 650,000 | G29: 679,000 | O29: =IFERROR(AVERAGE(지출[[#This Row],[Column3]:[Column14]]),"") -> 677,400
A30: 기타 시작 비용 | C30: 400,000 | D30: 350,000 | E30: 400,000 | F30: 300,000 | G30: 400,000 | O30: =IFERROR(AVERAGE(지출[[#This Row],[Column3]:[Column14]]),"") -> 370,000
A31: 은행 예탁 | C31: 300,000 | D31: 300,000 | E31: 300,000 | F31: 300,000 | G31: 300,000 | O31: =IFERROR(AVERAGE(지출[[#This Row],[Column3]:[Column14]]),"") -> 300,000
A32: 소유주 인출 | C32: 70,000 | D32: 70,000 | E32: 70,000 | F32: 70,000 | G32: 70,000 | O32: =IFERROR(AVERAGE(지출[[#This Row],[Column3]:[Column14]]),"") -> 70,000
A33: 총 현금 지출 | C33: =SUBTOTAL(109,지출[Column3]) -> 21,800,000 | D33: =SUBTOTAL(109,지출[Column4]) -> 27,562,000 | E33: =SUBTOTAL(109,지출[Column5]) -> 21,742,000 | F33: =SUBTOTAL(109,지출[Column6]) -> 24,044,000 | G33: =SUBTOTAL(109,지출[Column7]) -> 24,787,000 | H33: =SUBTOTAL(109,지출[Column8]) -> 0 | I33: =SUBTOTAL(109,지출[Column9]) -> 0 | J33: =SUBTOTAL(109,지출[Column10]) -> 0 | K33: =SUBTOTAL(109,지출[Column11]) -> 0 | L33: =SUBTOTAL(109,지출[Column12]) -> 0 | M33: =SUBTOTAL(109,지출[Column13]) -> 0 | N33: =SUBTOTAL(109,지출[Column14]) -> 0 | O33: =IFERROR(AVERAGE(지출[[#Totals],[Column3]:[Column14]]),"") -> 9,994,583
A35: 필수 운영 데이터(현금 외 흐름 정보)
A36: 판매액(원) | B36: 2,000,000 | C36: 2,500,000 | D36: 2,257,000 | E36: 2,387,000 | F36: 2,664,000 | G36: 2,324,000 | O36: =IFERROR(AVERAGE(필수_운영_데이터[[#This Row],[Column2]:[Column14]]),"") -> 2,355,333
A37: 외상 매출금 | B37: 1,500,000 | C37: 500,000 | D37: 886,000 | E37: 1,035,000 | F37: 1,775,000 | G37: 839,000 | O37: =IFERROR(AVERAGE(필수_운영_데이터[[#This Row],[Column2]:[Column14]]),"") -> 1,089,167
A38: 악성 부채(월말) | B38: 300,000 | C38: 200,000 | D38: 225,000 | E38: 269,000 | F38: 448,000 | G38: 359,000 | O38: =IFERROR(AVERAGE(필수_운영_데이터[[#This Row],[Column2]:[Column14]]),"") -> 300,167
A39: 재고 정리 자산(월말) | O39: =IFERROR(AVERAGE(필수_운영_데이터[[#This Row],[Column2]:[Column14]]),"") -> 
A40: 외상 매입금(월말) | O40: =IFERROR(AVERAGE(필수_운영_데이터[[#This Row],[Column2]:[Column14]]),"") -> 
A41: 감가 상각 | O41: =IFERROR(AVERAGE(필수_운영_데이터[[#This Row],[Column2]:[Column14]]),"") -> 

Sheet 현금 흐름 요약
J26: 데이터 요소: | K26: 5
C27: 차트로 된 전체 데이터 요소를 변경하려면 위의 슬라이더를 끕니다.
